bitfinex/quotes_ETHUSD_20240718
["timestamp","ask_amount","ask_price","bid_price","bid_amount"]
[1721281084999,0.0016112,3424.7,3424.3,2.92029]
[1721281085201,0.0016112,3424.7,3424.6,2.92004]
[1721281089834,0.0016112,3424.7,3424.4,2.92015]
[1721281090044,0.0016112,3424.7,3424.5,0.584044]
[1721281090349,0.0016112,3424.7,3424.5,3.504154]
[1721281091254,0.0016112,3424.7,3424.5,0.584044]
[1721281091726,0.0016112,3424.7,3424.5,2.92012]
[1721281093158,0.0016112,3424.7,3424.5,5.84024]
[1721281093381,0.0016112,3424.7,3424.3,2.9203]
[1721281093524,0.0016112,3424.7,3424.6,2.92004]
[1721281095249,0.0016112,3424.7,3424.6,5.84008]
[1721281095453,0.0016112,3424.7,3424.6,6.660358]
[1721281096278,0.0016112,3424.7,3424.6,12.660398]
[1721281096489,0.0016112,3424.7,3424.6,20.99876942]
[1721281096775,1e-08,3424.7,3424.6,23.1278149]
[1721281096951,1e-08,3424.7,3424.6,22.52149473]
[1721281097338,1e-08,3424.7,3424.6,23.1278149]
[1721281097536,1e-08,3424.7,3424.6,25.44153473]
[1721281097735,1e-08,3424.7,3424.6,25.99153473]
[1721281098140,1e-08,3424.7,3424.6,26.60127066]
[1721281099168,1e-08,3424.7,3424.6,25.99153473]
[1721281099472,1e-08,3424.7,3424.6,25.99130833]
[1721281100561,1e-08,3424.7,3424.6,24.46870613]
[1721281101787,1e-08,3424.7,3424.6,25.99130833]
[1721281102081,1e-08,3424.7,3424.6,26.38724515]
[1721281102476,1e-08,3424.7,3424.6,23.84957482]
[1721281102674,1e-08,3424.7,3424.6,26.38712982]
[1721281103182,1e-08,3424.7,3424.6,26.38713614]
[1721281103496,1e-08,3424.7,3424.6,25.99119932]
[1721281103702,1e-08,3424.7,3424.6,26.60093525]
[1721281103867,2.3513,3426.5,3425.9,2.91886]
[1721281105295,3.03105174,3426.5,3425.9,2.91886]
[1721281106967,3.03105174,3426.5,3425.7,2.9191]
[1721281107364,3.03105174,3426.5,3425.8,2.91901]
[1721281109988,3.03105174,3426.5,3425.9,2.91891]
[1721281109989,2.3513,3426.5,3425.9,2.91891]
[1721281112973,2.91826,3426.7,3426.0,2.91885]
[1721281114664,2.2974,3426.9,3426.2,2.91864]
[1721281114996,2.2974,3426.9,3425.9,2.91886]
[1721281115200,2.2974,3426.9,3426.6,2.91833]
[1721281119670,2.2974,3426.9,3426.2,2.91866]
[1721281123797,2.2974,3426.9,3426.0,3.210726]
[1721281125372,2.91826,3426.7,3426.0,3.210726]
[1721281126100,2.91826,3426.7,3426.0,2.91884]
[1721281126601,2.91843,3426.5,3425.5,2.91927]
[1721281126802,2.91843,3426.5,3425.7,2.9191]
[1721281128210,2.4913,3425.9,3425.1,2.91955]
[1721281128377,2.4913,3425.9,3425.1,2.91962]
[1721281128573,2.4913,3425.9,3424.8,2.91986]
[1721281128574,2.91917,3425.7,3424.8,2.91986]
[1721281128779,2.91917,3425.7,3424.9,2.91976]
[1721281129879,2.91917,3425.7,3424.7,2.91996]
[1721281129880,2.9193,3425.5,3424.7,2.91996]
[1721281130075,2.9193,3425.5,3424.8,0.291996]
[1721281130274,2.2806,3425.4,3424.8,0.291996]
[1721281130881,2.2806,3425.4,3424.8,3.211866]
[1721281132877,2.91902,3425.8,3424.9,2.91978]
[1721281132878,5.21902,3425.8,3424.9,2.91978]
[1721281134629,5.21902,3425.8,3424.9,2.91971]
[1721281134923,2.2893,3426.2,3425.3,2.9194]
[1721281135135,2.91879,3426.1,3425.4,2.91935]
[1721281135282,2.2893,3426.2,3425.5,2.91919]
[1721281135482,2.91843,3426.5,3425.6,0.34193346]
[1721281135681,2.91843,3426.5,3425.6,2.91917]
[1721281135920,5.19016,3426.6,3425.7,2.91911]
[1721281136820,2.2718,3426.6,3425.9,2.91893]
[1721281138105,3.79931283,3426.6,3425.9,2.91893]
[1721281141402,1.52909334,3426.3,3425.4,3.503248]
[1721281141701,4.44771334,3426.3,3425.5,2.91925]
[1721281141915,1.52909334,3426.4,3425.6,2.91917]
[1721281142198,1.52909334,3426.4,3426.2,2.91865]
[1721281142400,1.52909334,3427.1,3426.5,2.9184]
[1721281142654,1.52909334,3427.1,3426.3,0.291865]
[1721281142655,1.52909334,3427.2,3426.6,2.91827]
[1721281142801,5.41052,3427.6,3426.8,2.91816]
[1721281143000,5.29406656,3427.5,3426.6,2.91831]
[1721281143224,5.29406656,3427.5,3426.7,2.91824]
[1721281143225,1.52892418,3427.4,3426.7,2.91824]
[1721281143741,5.29406656,3427.5,3426.7,2.91824]
[1721281144043,1.52892418,3427.4,3426.7,2.91824]
[1721281144205,4.44650418,3427.5,3426.7,2.91824]
[1721281144532,4.02192418,3427.6,3426.8,2.91814]
[1721281144739,4.02192418,3427.6,3426.8,3.50763191]
[1721281145103,2.493,3427.6,3426.8,3.50763191]
[1721281145306,4.02192418,3427.6,3426.8,3.50763191]
[1721281145824,4.02192418,3427.6,3426.8,2.91814]
[1721281145825,2.91758,3427.5,3426.8,2.91814]
[1721281146228,2.91758,3427.5,3426.6,2.91831]
[1721281146545,4.44579178,3427.5,3426.6,2.91831]
[1721281146742,4.44579178,3427.5,3426.7,2.91825]
[1721281147311,2.91758,3427.5,3426.7,2.91825]
[1721281147512,4.44579178,3427.5,3426.7,2.91825]
[1721281149035,2.91758,3427.5,3426.7,2.91825]
[1721281149242,4.44538048,3427.5,3426.7,2.91825]
[1721281149706,4.44525787,3427.5,3426.7,2.91825]
[1721281150118,2.52802204,3427.5,3426.5,2.91842]
[1721281150315,2.91782,3427.3,3426.5,2.91842]
[1721281153553,2.91782,3427.3,3426.3,0.35022777]
[1721281153554,4.44505947,3427.5,3426.6,2.97669117]
[1721281153852,2.91758,3427.5,3426.6,2.97669117]
[1721281154653,2.91758,3427.5,3426.7,0.05835821]
[1721281155386,6.93767973,3427.6,3426.7,0.05835955]
[1721281155563,5.41049,3427.6,3426.7,0.29767696]
[1721281156364,2.493,3427.6,3426.8,0.05835667]
[1721281156546,2.493,3427.6,3426.7,2.30367696]
[1721281156547,3.0651838,3427.7,3426.9,3.40321336]
[1721281157128,2.9176,3427.5,3426.9,0.48520336]
[1721281157731,2.9176,3427.5,3426.7,6.21592696]
[1721281161437,5.26177,3427.4,3426.7,3.29767696]
[1721281161638,5.26177,3427.4,3426.7,0.29767696]
[1721281163070,5.26177,3427.4,3426.6,2.91834]
[1721281165594,2.3441,3427.4,3426.4,2.91847]
[1721281165808,2.91789,3427.2,3426.4,2.91847]
[1721281166471,2.91776,3427.3,3426.5,2.91842]
[1721281167770,2.91784,3427.2,3426.5,2.91842]
[1721281169490,2.91778,3427.3,3426.5,3.50213]
[1721281170604,4.4435774,3427.6,3426.5,5.78077]
[1721281170801,4.4435774,3427.6,3426.7,2.91818]
[1721281170802,2.91755,3427.6,3426.7,2.91818]
[1721281171112,5.5297438,3427.7,3426.8,2.97652736]
[1721281171292,5.5297438,3427.7,3426.8,2.91817]
[1721281171464,3.0652438,3427.7,3426.8,2.91817]
[1721281171660,3.0652438,3427.7,3426.9,0.05835528]
[1721281172063,3.0652438,3427.7,3426.8,2.91817]
[1721281172259,3.0652438,3427.7,3426.9,0.41651047]
[1721281172458,3.0652438,3427.7,3426.9,3.27619561]
[1721281172864,3.0652438,3427.7,3426.9,3.33455102]
[1721281173189,3.0652438,3427.7,3426.9,3.27619561]
[1721281173558,0.1477738,3427.7,3426.9,0.35815561]
[1721281173763,0.1477738,3427.7,3427.1,2.91791]
[1721281174078,0.1477738,3427.7,3427.1,2.91788]
[1721281177268,3.0652438,3427.7,3426.8,2.91816]
[1721281177482,2.91751,3427.6,3426.8,2.91816]
[1721281178303,2.91758,3427.5,3426.6,2.91831]
[1721281178521,5.37833,3427.4,3426.5,2.91834]
[1721281178786,2.91776,3427.3,3426.5,2.91834]
[1721281178991,2.5396738,3427.7,3426.2,4.4143]
[1721281179191,2.91749,3427.6,3426.6,2.91833]
[1721281179502,2.91749,3427.6,3426.6,3.510163]
[1721281179682,2.91749,3427.6,3426.6,2.91833]
[1721281180269,2.91762,3427.5,3426.6,2.91833]
[1721281180468,2.91766,3427.4,3426.6,2.91833]
[1721281181623,2.91781,3427.3,3426.4,2.91851]
[1721281182584,2.91781,3427.3,3426.5,2.91841]
[1721281183189,2.91781,3427.3,3426.2,4.4143]
[1721281183190,1.52790929,3427.4,3426.6,2.91833]
[1721281183394,4.44553929,3427.5,3426.6,2.91833]
[1721281183589,2.91767,3427.4,3426.6,2.91833]
[1721281183914,2.91776,3427.3,3426.6,2.91833]
[1721281184323,2.91785,3427.2,3426.4,2.9185]
[1721281185416,4.44682603,3427.3,3426.4,2.9185]
[1721281186805,2.91783,3427.2,3426.4,2.9185]
[1721281187122,2.91779,3427.3,3426.5,2.91838]
[1721281187279,4.44773223,3427.3,3426.5,2.91838]
[1721281187977,1.52994223,3427.2,3426.5,2.91838]
[1721281188223,1.52994223,3427.2,3426.5,3.742898]
[1721281188576,4.44760223,3427.4,3426.6,2.91834]
[1721281189229,1.52994223,3427.3,3426.6,2.91834]
[1721281189590,4.44760223,3427.4,3426.6,2.91834]
[1721281189924,1.53151017,3427.3,3426.6,2.91834]
[1721281191733,1.53151017,3427.3,3426.7,2.91825]
[1721281191921,2.91757,3427.5,3426.7,2.91825]
[1721281192226,1.53148135,3427.3,3426.7,2.91825]
[1721281192422,1.53148135,3427.6,3427.1,2.9179]
[1721281192887,1.67925515,3427.7,3427.2,2.91777]
[1721281193098,0.1477738,3427.7,3427.2,2.91777]
[1721281194338,1.6790513,3427.7,3427.2,2.91777]
[1721281194724,1.6790513,3427.7,3426.9,2.91807]
[1721281195046,1.6790513,3427.7,3427.1,2.91789]
[1721281195347,0.36023584,3427.6,3427.1,2.91789]
[1721281196125,0.36023584,3427.6,3426.9,2.91807]
[1721281196314,3.27772584,3427.6,3426.9,2.91807]
[1721281196515,1.53089004,3427.5,3426.9,2.91807]
[1721281196745,1.53089004,3427.5,3426.7,2.91825]
[1721281196746,1.53097048,3427.5,3426.7,2.91825]
[1721281196911,1.53097048,3427.4,3426.7,2.91825]
[1721281197413,1.53105471,3427.4,3426.7,2.91825]
[1721281198431,2.23838656,3427.4,3426.7,2.91825]
[1721281199418,2.23851531,3427.4,3426.4,2.91847]
[1721281199613,1.53118346,3427.1,3426.5,2.9184]
[1721281200119,1.53118346,3427.0,3426.5,2.9184]
[1721281200320,1.53118346,3427.1,3426.5,2.9184]
[1721281201014,1.53118346,3427.1,3426.6,2.91833]
[1721281201219,1.53118346,3427.2,3426.6,3.502022]
[1721281201517,1.53118346,3427.2,3426.6,2.91833]
[1721281201766,2.91758,3427.5,3426.6,2.91833]
[1721281201952,1.53124218,3427.2,3426.6,2.91833]
[1721281204877,1.53122029,3427.2,3426.6,2.91833]
[1721281205188,1.53122029,3427.2,3426.9,2.91806]
[1721281205490,1.53114984,3427.3,3426.9,5.23346]
[1721281206850,1.53114984,3427.3,3426.9,2.91806]
[1721281207050,1.53114984,3427.2,3426.9,2.91806]
[1721281207264,1.53114984,3427.3,3426.9,2.91806]
[1721281208103,1.53117822,3427.3,3426.9,2.91806]
[1721281208605,1.53117822,3427.4,3427.0,2.918]
[1721281211320,1.53106992,3427.4,3427.0,2.918]
[1721281213184,1.53106992,3427.4,3427.1,2.91789]
[1721281213384,1.9850577,3427.7,3427.1,2.91789]
[1721281213385,1.53106992,3427.5,3427.1,2.91789]
[1721281213604,1.53106992,3427.6,3427.1,2.91789]
[1721281214418,0.1477738,3427.7,3427.1,2.91789]
[1721281214594,1.53122071,3427.6,3427.1,2.91789]
[1721281215007,1.53121523,3427.6,3427.1,2.91789]
[1721281215706,1.53121523,3427.5,3427.1,2.91789]
[1721281216022,1.53121523,3427.6,3427.1,2.91789]
[1721281216594,1.53121523,3427.5,3427.1,2.91789]
[1721281216790,1.53121523,3427.5,3426.9,2.91807]
[1721281216997,1.53121523,3427.4,3427.0,2.91799]
[1721281217222,1.53121523,3427.5,3427.0,2.91799]
[1721281217629,1.53140709,3427.5,3427.0,2.91799]
[1721281217788,1.53140705,3427.5,3427.0,2.91799]
[1721281219923,2.17482898,3427.5,3427.0,2.91799]
[1721281220325,2.17482898,3427.5,3426.7,5.41107]
[1721281220326,1.53140705,3427.4,3426.4,2.4815]
[1721281220528,1.53140705,3427.1,3426.4,2.4815]
[1721281220830,2.4811104,3427.5,3426.6,2.91833]
[1721281220831,1.53155147,3427.2,3426.6,2.91833]
[1721281221138,1.53155147,3427.2,3426.6,2.91697436]
[1721281221338,1.53155147,3427.3,3426.8,2.91816]
[1721281221639,2.08618089,3427.4,3426.8,2.91816]
[1721281221802,1.53155147,3427.3,3426.8,2.91816]
[1721281223741,1.53155147,3427.1,3426.5,2.91842]
[1721281224045,1.53180442,3427.1,3426.5,2.91842]
[1721281224545,2.91783,3427.2,3426.5,2.91842]
[1721281224546,1.53178504,3427.0,3426.5,2.91842]
[1721281225637,1.53178504,3427.0,3426.4,2.4815]
[1721281225840,1.53178504,3427.0,3426.3,2.91859]
[1721281226144,1.53178504,3426.9,3426.3,2.91859]
[1721281226332,2.91793,3427.1,3426.3,2.91859]
[1721281226333,1.53178504,3426.8,3426.3,2.91859]
[1721281227104,3.80627094,3427.1,3426.3,2.91859]
[1721281227105,1.53178504,3426.9,3426.3,2.91859]
[1721281227628,4.44979504,3427.0,3426.3,2.91859]
[1721281227936,1.53178504,3426.9,3426.3,2.91859]
[1721281228745,2.91801,3427.0,3426.3,2.91859]
[1721281228746,4.44979504,3427.0,3426.3,2.91859]
[1721281228947,4.44979504,3427.0,3426.4,0.583734]
[1721281229303,1.53178504,3427.0,3426.5,2.4131]
[1721281230254,1.53126795,3427.0,3426.5,2.4131]
[1721281231116,2.9182,3426.8,3426.0,2.3348]
[1721281231418,2.9182,3426.8,3426.0,5.25364]
[1721281231655,1.53126795,3426.9,3426.1,3.444114]
[1721281231943,1.53126795,3426.9,3426.1,3.52338188]
[1721281232144,4.44931795,3427.0,3426.1,3.52338188]
[1721281233010,4.44931795,3427.0,3426.2,2.91867]
[1721281233237,4.44931795,3427.0,3426.3,2.55356252]
[1721281233457,4.44931795,3427.0,3426.3,3.27529458]
[1721281233776,2.91805,3427.0,3426.3,3.27529458]
[1721281233984,4.44896957,3427.0,3426.3,3.27529458]
[1721281234293,2.91805,3427.0,3426.3,3.27529458]
[1721281234581,4.44896957,3427.0,3426.3,3.27529458]
[1721281235075,2.91809,3426.9,3426.3,3.27529458]
[1721281235277,2.91843,3426.5,3426.3,0.07826252]
[1721281235435,2.91843,3426.5,3426.0,2.4753]
[1721281235635,2.91843,3426.5,3426.1,0.0757322]
[1721281236146,2.91868,3426.2,3426.1,0.0757322]
[1721281236347,2.91891,3426.0,3425.3,3.2689]
[1721281238379,2.91898,3425.9,3425.3,2.4339]
[1721281239081,2.9188,3426.1,3425.3,2.4339]
[1721281239282,2.91869,3426.2,3425.3,2.4339]
[1721281239573,2.91888,3426.0,3425.3,2.4339]
[1721281240338,2.9186,3426.3,3425.3,5.35334]
[1721281241080,2.9186,3426.3,3425.4,0.07344208]
[1721281241465,2.91877,3426.1,3425.4,0.07344208]
[1721281243943,2.91876,3426.2,3425.4,2.99279208]
[1721281246250,2.91852,3426.4,3425.5,2.3085]
[1721281246471,2.91861,3426.3,3425.5,2.3085]
[1721281246782,2.91861,3426.3,3425.6,0.07341219]
[1721281255257,4.02063862,3426.8,3425.6,0.07341219]
[1721281255502,3.0,3426.7,3425.6,0.07341219]
[1721281255705,3.0,3426.7,3425.5,2.3085]
[1721281255706,2.91867,3426.3,3425.5,2.3085]
[1721281255910,0.291867,3426.2,3425.7,0.07370726]
[1721281256197,0.291867,3426.2,3425.5,2.3085]
[1721281256406,2.91878,3426.1,3425.8,0.07370726]
[1721281256695,2.91878,3426.1,3425.5,2.3085]
[1721281256855,3.2399147,3426.0,3425.9,0.07370726]
[1721281257056,2.9193,3425.5,3424.9,2.4751]
[1721281257290,2.9193,3425.5,3425.0,0.07370726]
[1721281257862,2.91947,3425.3,3425.0,0.07370726]
[1721281258061,2.91947,3425.3,3424.6,5.40494]
[1721281258262,2.91935,3425.5,3425.1,0.07134052]
[1721281258562,2.91935,3425.5,3425.2,0.07134052]
[1721281258762,2.91935,3425.5,3424.7,2.91995]
[1721281259063,2.91935,3425.5,3424.8,0.07134052]
[1721281261478,2.91886,3426.0,3425.0,2.3144]
[1721281262007,2.919,3425.9,3425.1,0.07134052]
[1721281262406,2.919,3425.9,3425.1,0.90734052]
[1721281263163,2.91903,3425.8,3425.1,0.90734052]
[1721281263559,2.91918,3425.7,3425.1,0.07134052]
[1721281264297,0.616676,3425.9,3425.1,0.90734052]
[1721281264298,3.535656,3425.9,3425.1,0.90734052]
[1721281264490,2.91898,3425.9,3425.1,0.90734052]
[1721281265061,2.91898,3425.9,3425.3,0.836]
[1721281265496,2.91898,3425.9,3425.4,0.07153483]
[1721281267804,2.91878,3426.1,3425.4,0.07153483]
[1721281268009,4.44639497,3426.3,3425.5,0.836]
[1721281268010,2.9186,3426.3,3425.5,0.836]
[1721281268214,2.9186,3426.3,3425.6,2.3042]
[1721281268366,2.9186,3426.3,3425.6,2.37578343]
[1721281271579,3.7546,3426.3,3425.6,2.37578343]
[1721281271782,3.7546,3426.3,3425.6,2.3042]
[1721281272402,3.7546,3426.3,3425.7,0.07158343]
[1721281272603,4.15511068,3426.3,3425.7,0.07158343]
[1721281273177,3.1094,3425.9,3425.7,0.07158343]
[1721281273491,3.1094,3425.9,3424.9,5.38767]
[1721281273492,2.91908,3425.8,3425.0,3.0]
[1721281274011,2.91908,3425.8,3425.1,0.06902248]
[1721281276697,2.91913,3425.7,3425.1,0.06902248]
[1721281280911,1.5312739,3426.2,3425.4,2.2861]
[1721281281321,4.4498739,3426.3,3425.5,2.98841184]
[1721281281669,1.5312739,3426.2,3425.5,2.98841184]
[1721281282074,1.5312739,3426.2,3425.5,3.38984565]
[1721281282277,2.9186,3426.3,3425.6,2.2769]
[1721281282278,4.4498739,3426.3,3425.6,2.2769]
[1721281282873,4.4498739,3426.3,3425.7,0.06914184]
[1721281283330,4.44991331,3426.3,3425.7,0.06914184]
[1721281283532,4.4498786,3426.3,3425.7,0.06914184]
[1721281285301,1.5312786,3426.3,3425.7,0.06914184]
[1721281285637,9.17753432,3426.6,3425.7,0.06914184]
[1721281285638,1.5312786,3426.2,3425.7,0.06914184]
[1721281286143,1.5312786,3426.0,3425.7,0.06914184]
[1721281286308,1.5312786,3426.0,3425.3,5.30774]
[1721281286647,1.53139079,3425.9,3425.3,5.30774]
[1721281287939,1.53139079,3426.0,3425.3,5.30774]
[1721281288824,4.45022079,3426.1,3425.3,5.30774]
[1721281289641,1.53133929,3426.1,3425.4,2.91935]
[1721281289827,1.53133929,3426.2,3425.4,2.91935]
[1721281290024,1.53125235,3426.2,3425.5,0.06912317]
[1721281290234,1.53125235,3426.2,3425.4,2.91935]
[1721281290415,1.53125235,3426.2,3425.4,3.450115]
[1721281290615,1.53125235,3426.2,3425.5,0.06912317]
[1721281291039,1.53125235,3426.2,3425.5,2.98834317]
[1721281291336,1.53125235,3426.2,3425.6,2.2504]
[1721281292040,1.53125235,3426.2,3425.7,0.06912317]
[1721281292208,4.44985235,3426.3,3425.7,0.06912317]
[1721281292406,1.53125235,3426.2,3425.7,0.06912317]
[1721281292622,2.9186,3426.3,3425.7,0.06912317]
[1721281292918,4.4498129,3426.3,3425.7,0.06912317]
[1721281293346,1.5312129,3426.3,3425.7,0.06912317]
[1721281293949,1.5312129,3426.2,3425.7,0.06912317]
[1721281295738,2.91852,3426.4,3425.7,0.06912317]
[1721281295929,1.82314371,3426.3,3425.7,0.06912317]
[1721281296127,1.53129171,3426.2,3425.7,0.06912317]
[1721281296340,1.82314371,3426.3,3425.7,0.06912317]
[1721281297222,1.53129171,3426.3,3425.7,0.06912317]
[1721281298763,1.53129171,3426.2,3425.7,0.06912317]
[1721281299084,2.91852,3426.4,3425.7,0.06912317]
[1721281299373,1.53135394,3426.2,3425.7,0.06912317]
[1721281299541,1.53138718,3426.2,3425.7,0.06912317]
[1721281300685,1.53138718,3426.3,3425.7,0.06912317]
[1721281302178,4.01029346,3426.4,3425.7,0.06912317]
[1721281302356,1.53131399,3426.3,3425.7,0.06912317]
[1721281304541,1.53131399,3426.3,3425.6,5.16958]
[1721281304761,1.53131399,3426.3,3425.8,0.06909708]
[1721281304965,1.53131399,3426.3,3425.6,5.16958]
[1721281305272,1.53131399,3426.3,3425.6,6.061973]
[1721281305475,1.53149663,3426.3,3425.7,0.06909708]
[1721281307172,1.53149663,3426.4,3425.9,2.91893]
[1721281307574,1.53149663,3426.4,3426.0,0.06907095]
[1721281308517,1.53170841,3426.4,3426.1,2.4925]
[1721281308690,1.53170841,3426.5,3426.1,2.4925]
[1721281309087,1.53164758,3426.5,3426.2,0.06907095]
[1721281309473,1.53164758,3426.6,3426.2,0.06907095]
[1721281309912,1.53164758,3426.7,3426.2,0.06907095]
[1721281310416,1.53164758,3426.9,3426.6,2.343]
[1721281310622,1.53164758,3427.2,3426.6,6.09634]
[1721281310909,5.06170661,3427.8,3426.7,2.98721517]
[1721281310910,1.53164758,3427.3,3426.7,2.98721517]
[1721281311310,4.75546709,3427.6,3426.7,2.98721517]
[1721281311311,1.53164758,3427.4,3426.7,2.98721517]
[1721281312575,1.52978111,3427.4,3426.7,2.98721517]
[1721281312782,5.28236111,3427.5,3426.7,2.98721517]
[1721281313681,1.52978111,3427.4,3426.7,2.98721517]
[1721281313882,4.44746111,3427.4,3426.7,0.06898517]
[1721281314078,0.52824611,3427.3,3426.7,0.06898517]
[1721281314821,2.91768,3427.4,3426.7,0.06898517]
[1721281316288,1.52901989,3427.5,3426.7,2.98717517]
[1721281316592,3.0651838,3427.7,3427.0,0.835]
[1721281316593,0.1477738,3427.7,3427.0,0.835]
[1721281316914,0.1477738,3427.7,3427.1,0.06874281]
[1721281317276,2.3741,3427.6,3427.1,0.06874281]
[1721281317478,8.27536,3427.2,3427.1,0.06874281]
[1721281317682,2.91814,3426.9,3426.1,2.4336]
[1721281317986,2.91814,3426.9,3426.2,0.06371394]
[1721281317987,0.835,3426.7,3426.2,0.06371394]
[1721281318780,2.91814,3426.9,3426.2,0.06371394]
[1721281319513,4.44599711,3427.1,3426.2,0.06371394]
[1721281319702,5.69321108,3427.1,3426.3,0.835]
[1721281320306,5.69321108,3427.1,3426.4,0.06371394]
[1721281320614,5.69321108,3427.1,3426.2,2.91866]
[1721281320615,4.16513397,3427.1,3426.2,2.91866]
[1721281320777,4.16513397,3427.1,3426.3,0.06371394]
[1721281320985,4.44573845,3427.3,3426.4,2.2687]
[1721281321493,2.91775,3427.3,3426.5,0.12207694]
[1721281321707,1.52798845,3427.6,3426.7,2.91819]
[1721281321880,4.59321225,3427.7,3426.7,2.91819]
[1721281322513,4.59321225,3427.7,3426.8,0.06371394]
[1721281322714,6.26163009,3427.7,3426.8,0.06371394]
[1721281323027,1.67576225,3427.7,3426.9,5.21152]
[1721281323209,0.1477738,3427.7,3427.0,0.06371394]
[1721281323437,0.1477738,3427.7,3427.0,2.98170394]
[1721281324734,0.1477738,3427.7,3427.1,2.91791]
[1721281324934,0.1477738,3427.7,3427.2,0.52751239]
[1721281325129,0.1477738,3427.7,3427.1,2.91791]
[1721281325329,0.1477738,3427.7,3427.3,0.06371394]
[1721281325529,0.1477738,3427.7,3427.1,2.91791]
[1721281325730,0.1477738,3427.7,3427.4,0.06371394]
[1721281325933,0.1477738,3427.7,3427.1,2.91791]
[1721281326142,0.1477738,3427.7,3427.5,0.06371394]
[1721281326342,0.1477738,3427.7,3426.9,2.2935]
[1721281326343,2.91749,3427.6,3426.9,2.2935]
[1721281326511,2.91789,3427.2,3426.2,10.21865]
[1721281326710,2.91766,3427.4,3426.2,2.91865]
[1721281326711,2.91792,3427.1,3426.2,2.91865]
[1721281327109,2.91792,3427.1,3426.1,5.19858]
[1721281327309,2.91817,3426.8,3426.1,2.2799]
[1721281327609,2.91817,3426.8,3425.9,2.91889]
[1721281330943,2.91817,3426.8,3426.0,0.06400049]
[1721281333333,2.91845,3426.5,3425.7,5.3123]
[1721281333535,2.91845,3426.5,3426.1,0.06396699]
[1721281333733,2.91845,3426.5,3425.7,5.3123]
[1721281333974,2.91845,3426.5,3426.2,0.06396699]
[1721281334172,2.9187,3426.2,3425.4,2.9193]
[1721281334472,2.9187,3426.2,3425.5,0.06396699]
[1721281335236,2.9187,3426.2,3425.4,2.9193]
[1721281335684,1.52763081,3426.5,3425.5,0.06396699]
[1721281335874,2.91838,3426.6,3425.6,3.2174467]
[1721281336373,2.91845,3426.5,3425.6,3.2174467]
[1721281336547,2.91845,3426.5,3425.7,0.06415312]
[1721281337083,2.91853,3426.4,3425.7,0.06415312]
[1721281337577,2.91853,3426.4,3425.4,2.9193]
[1721281337788,2.91853,3426.4,3425.8,0.06414567]
[1721281337933,2.91853,3426.4,3425.5,2.91927]
[1721281338137,2.91853,3426.4,3425.9,0.06414567]
[1721281338359,2.91853,3426.4,3425.5,2.91927]
[1721281339003,2.91853,3426.4,3425.6,0.06414567]
[1721281339407,2.91884,3426.1,3425.6,0.06414567]
[1721281339696,2.91884,3426.1,3425.3,3.0]
[1721281340088,2.91884,3426.1,3425.4,0.06414567]
[1721281340678,2.91887,3426.0,3425.4,0.06414567]
[1721281341084,2.91887,3426.0,3425.1,5.91961]
[1721281341283,2.91887,3426.0,3425.5,0.06452904]
[1721281341469,2.91887,3426.0,3425.1,3.0]
[1721281341671,2.91887,3426.0,3425.2,0.06452904]
[1721281349438,2.91895,3425.9,3425.2,0.06452904]
[1721281351614,2.91903,3425.8,3425.2,0.06452904]
[1721281352035,2.91937,3425.4,3424.8,2.4442]
[1721281352238,2.91946,3425.3,3424.9,0.06460723]
[1721281352437,2.91946,3425.3,3424.4,5.22837]
[1721281352640,2.91946,3425.3,3424.5,0.06471893]
[1721281352949,2.91946,3425.3,3424.4,5.22837]
[1721281353158,2.91946,3425.3,3424.5,2.92012]
[1721281353535,2.91946,3425.3,3424.6,0.06471893]
[1721281358562,2.4684,3425.2,3424.6,0.06471893]
[1721281361966,5.38793,3425.2,3424.6,0.06471893]
[1721281362278,5.38793,3425.2,3424.3,2.9203]
[1721281362477,5.38793,3425.2,3424.4,0.06494238]
[1721281363036,2.91972,3425.0,3424.4,0.06494238]
[1721281363367,2.91972,3425.0,3424.1,2.92047]
[1721281363534,2.9198,3424.9,3424.5,0.06520681]
[1721281363730,2.9198,3424.9,3424.1,2.92047]
[1721281363929,2.9198,3424.9,3424.6,0.06520681]
[1721281364149,3.750573,3424.9,3424.1,2.92047]
[1721281364393,5.28567,3424.8,3424.7,0.06520681]
[1721281364557,2.92005,3424.6,3423.7,5.2705]
[1721281364869,2.92005,3424.6,3423.8,0.06520681]
[1721281365446,2.92022,3424.4,3423.6,3.0]
[1721281365651,2.92022,3424.4,3423.7,0.06520681]
[1721281366276,2.92052,3424.1,3423.4,2.3167]
[1721281366477,2.92052,3424.1,3423.5,0.06303325]
[1721281367787,2.92059,3424.0,3423.5,0.06303325]
[1721281368082,2.92059,3424.0,3423.2,5.4859]
[1721281368278,2.92059,3424.0,3423.3,0.06303325]
[1721281369746,2.92059,3424.0,3423.3,2.98418325]
[1721281369946,2.92054,3424.1,3423.3,2.98418325]
[1721281373346,2.2951,3424.2,3423.3,2.98418325]
[1721281373347,2.92066,3423.9,3423.3,0.06303325]
[1721281373752,2.92066,3423.9,3423.3,0.04640275]
[1721281377397,2.92047,3424.1,3423.3,0.04640275]
[1721281377956,2.92056,3424.0,3423.3,0.04640275]
[1721281381995,2.92043,3424.2,3423.3,3.80501503]
[1721281383680,2.92047,3424.1,3423.3,3.80501503]
[1721281385899,2.92067,3423.9,3423.3,0.04640275]
[1721281386207,2.92092,3423.6,3423.3,0.04640275]
[1721281386563,2.92092,3423.6,3422.8,5.38426]
[1721281386762,2.92092,3423.6,3423.4,0.04521068]
[1721281386962,2.92092,3423.6,3422.8,5.922686]
[1721281387176,2.92092,3423.6,3423.5,0.04527405]
[1721281387387,2.92092,3423.6,3422.8,5.38426]
[1721281387554,2.92092,3423.6,3423.5,0.04527405]
[1721281387755,2.92092,3423.6,3422.9,2.92148]
[1721281387958,2.92092,3423.6,3423.5,0.04527405]
[1721281388192,2.92092,3423.6,3422.9,2.92148]
[1721281388391,2.92092,3423.6,3423.5,0.04527405]
[1721281388572,2.92092,3423.6,3422.9,2.92148]
[1721281388773,2.92092,3423.6,3423.5,0.04527405]
[1721281389461,2.92092,3423.6,3422.9,2.92148]
[1721281389656,2.92092,3423.6,3423.0,0.04527405]
[1721281389891,2.92056,3424.0,3423.0,0.04527405]